Workbook

Sheet 0003
AJ1: 事業番号 | AS1: =IF(OR(AQ1=" ", AQ1=""), "", "-") ->  | AT1: 3
A2: 29 | AI2: （ | AJ2: 人事院 | AX2: ）
A3: 事業名 | G3: 国家公務員採用試験の実施 | Y3: 担当部局庁 | AE3: 人材局 | AQ3: 作成責任者
A4: 事業開始年度 | G4: 昭和２３年度 | M4: 事業終了 （予定）年度 | S4: 終了予定なし | Y4: 担当課室 | AE4: 試験課 試験専門官室 | AQ4: 課長 原田 三嘉 首席試験専門官 渡邊 直一
A5: 会計区分 | G5: 一般会計
A6: 根拠法令 （具体的な 条項も記載） | G6: ・国家公務員法第27条、第36条、第40条～第49条 ・採用試験の対象官職及び種類並びに採用試験により確保すべき人材に関する政令 ・人事院規則８―18 | Y6: 関係する計画、通知等 | AE6: 平成28年度国家公務員採用試験の施行計画 （平成28年2月1日）
A7: 主要政策・施策 | G7: - | Y7: 主要経費 | AE7: その他の事項経費
A8: 事業の目的 （目指す姿を簡潔に。3行程度以内） | G8: 行政課題の複雑・高度化、グローバル化等が進む中で、高い資質と使命感を有する多様で有為な人材を確保するため、採用試験を公正かつ円滑・確実に実施する。
A9: 事業概要 （5行程度以内。別添可） | G9: 総合職試験（院卒者試験及び大卒程度試験）、一般職試験（大卒程度試験、高卒者試験及び社会人試験（係員級））、専門職試験（国税専門官、労働基準監督官等）及び経験者採用試験を実施している。平成28年度において人事院が試験機関として自ら実施した採用試験の数は、21種類24回である。
A10: 実施方法 | G10: 直接実施
A11: 予算額・ 執行額 （単位:百万円） | P11: =W11-1 -> 26 | W11: =AD11-1 -> 27 | AD11: =AK11-1 -> 28 | AK11: =A2 -> 29 | AR11: =AK11+1 -> 30
G12: 予算の状況 | I12: 当初予算 | P12: 269 | W12: 275 | AD12: 273 | AK12: 275 | AR12: 283
I13: 補正予算 | P13: 0 | W13: 0 | AD13: 0
I14: 前年度から繰越し | P14: 0 | W14: 0 | AD14: 0 | AK14: 0
I15: 翌年度へ繰越し | P15: 0 | W15: 0 | AD15: 0
I16: 予備費等 | P16: 0 | W16: 0 | AD16: 0
I17: 計 | P17: =SUM(P12:V16) -> 269 | W17: =SUM(W12:AC16) -> 275 | AD17: =SUM(AD12:AJ16) -> 273 | AK17: =SUM(AK12:AQ16) -> 275 | AR17: =SUM(AR12:AX16) -> 283
G18: 執行額 | P18: 238 | W18: 257 | AD18: 262
G19: 執行率（％） | P19: =P18/P17 -> 0.8847583643 | W19: =W18/W17 -> 0.9345454545 | AD19: =AD18/AD17 -> 0.9597069597
G20: 当初予算＋補正予算に対する執行額の割合（％） | P20: =P18/P17 -> 0.8847583643 | W20: =W18/W17 -> 0.9345454545 | AD20: =AD18/AD17 -> 0.9597069597
A21: 平成29・30年度 予算内訳 （単位：百万円） | G21: 歳出予算日 | P21: =AK11 -> 29 | W21: =P21+1 -> 30 | AD21: 主な増減理由
G22: 任用試験費 | P22: 211.9 | W22: 212 | AD22: 「新しい日本のための優先課題推薦枠」 8.9 （情報処理業務庁費） （任用試験費） 次年度試験の電算処理システムの改修等のため （職員旅費） ＣＢＴ導入の調査研究に係る経費見直しによる減
G23: 諸謝金 | P23: 41.1 | W23: 41.1
G24: 職員旅費 | P24: 16.3 | W24: 16.1
G25: 非常勤職員手当 | P25: 5.3 | W25: 5.3
G26: 情報処理業務庁費 | P26: - | W26: 8.9
G27: その他 | P27: =P28-SUM(P22:V26) -> 0.4 | W27: =W28-SUM(W22:AC26) -> -0.4
G28: 計 | P28: =AK12 -> 275 | W28: =AR12 -> 283
A29: 成果目標及び 成果実績 （アウトカム） | G29: 定量的な成果目標 | P29: 成果指標 | AB29: 単位 | AE29: =AI29-1 -> 26 | AI29: =AM29-1 -> 27 | AM29: =P21-1 -> 28 | AQ29: 中間目標 | AU29: 目標最終年度
AQ30: - | AS30: 年度 | AU30: - | AW30: 年度
G31: － | Y31: 成果実績
Y32: 目標値
Y33: 達成度 | AB33: ％
A34: 横断的な施策に係る成果目標及び成果実績 （アウトカム） | H34: 定量的な成果目標 | P34: 成果指標 | AB34: 単位 | AE34: 25年度 | AI34: 26年度 | AM34: 27年度 | AQ34: 中間目標 | AU34: 目標最終年度
AS35: 年度 | AW35: 年度
G36: 目標・指標 | Y36: 成果実績
Y37: 目標値
Y38: 達成度 | AB38: ％
A39: ●● | E39: 関係 | G39: 算出方法
A40: 根拠として用いた 統計・データ名 （出典） | G40: -
A41: 成果目標及び成果実績（アウトカム）欄についてさらに記載が必要な場合はチェックの上【別紙１】に記載
A42: 定量的な成果目標の設定が困難な場合 | B42: 定量的な目標が設定できない理由及び定性的な成果目標 | G42: 定量的な目標が設定できない理由 | AB42: 定性的な成果目標と26～28年度の達成状況・実績
G44: 本事業は、採用試験を公正かつ円滑・確実に実施することを目的とするものであり、民間の採用動向等の影響を受ける申込者数等を用いた定量的な評価にはなじまないため。 | AB44: 採用試験を公正かつ円滑・確実に実施する。 平成28年度は同年4月の熊本地震の発生に伴い、熊本市において同年5月に実施予定であった総合職試験（院卒者試験・大卒程度試験）、国税専門官採用試験等の第1次試験を福岡市の会場に変更して実施することとなったが、受験申込者への周知などに迅速・的確に対応したことにより、特段の混乱もなく円滑に実施することができた。 この他に平成26～28年度において、採用試験の公正性を損なうような問題を生じさせることなく、所定のスケジュールどおりに全ての試験を実施することができている。
B47: 事業の妥当性を検証するための代替的な達成目標及び実績 | G47: 代替目標 | P47: 代替指標 | AB47: 単位 | AE47: =AE29 -> 26 | AI47: =AI29 -> 27 | AM47: =AM29 -> 28 | AQ47: 中間目標 | AU47: 目標最終年度
AQ48: - | AS48: 年度 | AU48: - | AW48: 年度
G49: － | P49: 国家公務員採用試験の申込者数(上段）及び合格者数(下段） | Y49: 実績
Y50: 総合職 | AB50: 人 | AE50: 23047 | AI50: 24297 | AM50: 24507
Y51: 試験 | AE51: 2080 | AI51: 1887 | AM51: 2178
Y52: 一般職試験 | AB52: 人 | AE52: 35508 | AI52: 35640 | AM52: 35998
Y53: (大卒程度） | AE53: 6183 | AI53: 7347 | AM53: 7583
Y54: 一般職試験 | AB54: 人 | AE54: 12482 | AI54: 12483 | AM54: 13393
Y55: (高卒程度) | AE55: 1902 | AI55: 2514 | AM55: 2392
Y56: その他の | AB56: 人 | AE56: 35213 | AI56: 27961 | AM56: 32909
Y57: 大卒程度試験 | AE57: 4409 | AI57: 4981 | AM57: 4950
Y58: その他の | AB58: 人 | AE58: 32343 | AI58: 31694 | AM58: 31673
Y59: 高卒程度試験 | AE59: 4190 | AI59: 4494 | AM59: 4416
Y60: 目標値
Y61: 達成度 | AB61: ％
A62: 活動指標及び 活動実績 （アウトプット） | G62: 活動指標 | AB62: 単位 | AE62: =AE47 -> 26 | AI62: =AI47 -> 27 | AM62: =AM47 -> 28 | AQ62: =AM62+1 -> 29 | AU62: =AQ62+1 -> 30
G63: 実施した採用試験の種類・回数 | Y63: 活動実績 | AB63: 種類・回 | AE63: 21・24 | AI63: 21・24 | AM63: 21・24 | AQ63: 21・24
Y64: 当初見込み | AB64: 種類・回 | AE64: 21・24 | AI64: 21・24 | AM64: 21・24 | AQ64: 21・24 | AU64: 21・24
A65: 単位当たり コスト | G65: 算出根拠 | AB65: 単位 | AE65: =AE62 -> 26 | AI65: =AI62 -> 27 | AM65: =AM62 -> 28 | AQ65: =AQ62 -> 29
G66: 執行額（百万円）／申込者数（人） | Y66: 単位当たり コスト | AB66: 円 | AE66: 1717 | AI66: 1946 | AM66: 1892
Y67: 計算式 | AB67: 百万円/人 | AE67: 238/138,593 | AI67: 257/132,075 | AM67: 262/138,480
A68: 政策評価、経済・財政再生アクション・プログラムとの関係 | C68: 政策評価 | E68: 政策
E69: 施策
E70: 測定指標 | G70: 定量的指標 | AB70: 単位 | AE70: 25年度 | AI70: 26年度 | AM70: 27年度 | AQ70: 中間目標 | AU70: 目標年度
AS71: 年度 | AW71: 年度
Y72: 実績値
Y73: 目標値
G74: 定性的指標 | Y74: 目標 | AE74: 施策の進捗状況（目標）
AB75: 目標年度
AE78: 施策の進捗状況（実績）
E81: 本事業の成果と上位施策・測定指標との関係
C84: 経済・財政再生 アクション・プログラム | E84: 改革項目 | G84: 分野：
E85: KPI (第一階層） | G85: ＫＰＩ （第一階層） | AB85: 単位 | AE85: 計画開始時 | AI85: 27年度 | AM85: 28年度 | AQ85: 中間目標 | AU85: 目標最終年度
AG86: 年度 | AS86: 年度 | AW86: 年度
Y87: 成果実績
Y88: 目標値
Y89: 達成度 | AB89: ％
E90: KPI (第二階層） | G90: ＫＰＩ （第二階層） | AB90: 単位 | AE90: 計画開始時 | AI90: 27年度 | AM90: 28年度 | AQ90: 中間目標 | AU90: 目標最終年度
AG91: 年度 | AS91: 年度 | AW91: 年度
Y92: 成果実績
Y93: 目標値
Y94: 達成度 | AB94: ％
E95: 本事業の成果と改革項目・KPIとの関係
A98: 事業所管部局による点検・改善
C99: 項 目 | AD99: 評 価 | AG99: 評価に関する説明
A100: 国費投入の必要性 | C100: 事業の目的は国民や社会のニーズを的確に反映しているか。 | AD100: ○ | AG100: 国家公務員採用試験を公正かつ円滑・確実に実施するためには、地方自治体、民間等に委ねることはできない。
C101: 地方自治体、民間等に委ねることができない事業なのか。 | AD101: ○
C102: 政策目的の達成手段として必要かつ適切な事業か。政策体系の中で優先度の高い事業か。 | AD102: ○
A103: 事業の効率性 | C103: 競争性が確保されているなど支出先の選定は妥当か。 | AD103: ○ | AG103: 国家公務員採用試験の電算処理については、平成22年度から予算執行の透明性を高めるため、一般競争入札を導入し、複数の業者の参入を促しているが、結果として一社応札となっている。
E104: 一般競争入札、総合評価入札又は随意契約（企画競争）による支出のうち、一者応札又は一者応募となったものはないか。 | AD104: 有
E105: 競争性のない随意契約となったものはないか。 | AD105: 無
C106: 受益者との負担関係は妥当であるか。 | AD106: ○
C107: 単位当たりコスト等の水準は妥当か。 | AD107: ○
C108: 資金の流れの中間段階での支出は合理的なものとなっているか。 | AD108: ‐
C109: 費目・使途が事業目的に即し真に必要なものに限定されているか。 | AD109: ○
C110: 不用率が大きい場合、その理由は妥当か。（理由を右に記載） | AD110: ‐
C111: 繰越額が大きい場合、その理由は妥当か。（理由を右に記載） | AD111: ‐
C112: その他コスト削減や効率化に向けた工夫は行われているか。 | AD112: ○
A113: 事業の有効性 | C113: 成果実績は成果目標に見合ったものとなっているか。 | AD113: ○ | AG113: 多くの府省において、新たな試験に移行した平成24年度以降の試験からの各年度の採用者のいずれについても、従来どおり優秀な人材を確保できたとしており、国家公務員採用試験により、各府省の需要に応じた多様で有為な人材を確保することができている。
C114: 事業実施に当たって他の手段・方法等が考えられる場合、それと比較してより効果的あるいは低コストで実施できているか。 | AD114: ○
C115: 活動実績は見込みに見合ったものであるか。 | AD115: ○
C116: 整備された施設や成果物は十分に活用されているか。 | AD116: ○
A117: 関連事業 | C117: 関連する事業がある場合、他部局・他府省等と適切な役割分担を行っているか。（役割分担の具体的な内容を各事業の右に記載）
C118: 所管府省・部局名 | P118: 事業番号 | T118: 事業名
A124: 点検・改善結果 | C124: 点検結果 | G124: 国家公務員採用試験は、各府省の需要に応じた多様で有為な人材を供給してきており、情実任用を排し、能力本位により公務を担う優秀な人材を確保するための必要不可欠な事業である。この採用試験の実施に際しては、費用対効果を意識し、効率的に実施している。 国家公務員採用試験に際しては、平成24年度から全ての試験でインターネット申込みを実施しており、試験業務の合理化・効率化、受験希望者の利便性の向上を図ってきた。また、平成28年度より、インターネット申込者については自らの試験結果（成績）をインターネット上で確認できることとし、受験者の利便性向上及び受験者からの成績開示請求に関する事務の合理化を図ったところである。 インターネット申込割合の増加（28年度の高卒程度試験97.9％）に伴い、受験案内・申込書・受験票等の印刷部数を漸次削減してきている。
C125: 改善の 方向性 | G125: 採用試験の実施に当たっては、試験受付業務等の合理化・効率化を図るなど、費用対効果を意識した効率的な試験業務に努め、インターネットを利用することの利便性等をアピールし、さらなる浸透を図ることにより、事務の合理化やコスト削減を推進する。
A126: 外部有識者の所見
A127: ※ 外部有識者による点検の対象外の事業
A128: 行政事業レビュー・調達改善推進チームの所見
A129: 事業内容の 一部改善 | F129: ○ 高卒程度の国家公務員採用試験におけるインターネット申込者の割合を100％に近付ける取組を進めること。受験案内・申込書・受験票等の印刷部数等の更なる削減の余地について精査して、その結果を平成30年度予算概算要求に反映させること。 ○ 今後とも、費用対効果を意識した効率的な試験の実施に努めること。
A130: 所見を踏まえた改善点/概算要求における反映状況
A131: 縮減 | F131: ○ 国家公務員採用試験については、平成24年度から全ての試験でインターネットによる受験申込みを導入して、試験事務の合理化・効率化、受験希望者の利便性の向上を図ってきた。今後、インターネットによる受験申込みの割合を高めることにより、更なる事務の合理化・効率化を図るなど、費用対効果を意識した試験実施に努める。 ○ 平成30年度予算概算要求においては、各試験におけるインターネット受験申込みの割合が高まってきている状況を踏まえ、受験案内・申込書・受験票等の印刷部数の更なる削減を行うことで要求額を減額する。
A132: 備考
A134: 関連する過去のレビューシートの事業番号
A135: =Q135-1 -> 22 | G135: － | Q135: =AG135-1 -> 23 | W135: － | AG135: =A136-1 -> 24 | AM135: 3
A136: =Q136-1 -> 25 | G136: 3 | Q136: =AG136-1 -> 26 | W136: 3 | AG136: =A137-1 -> 27 | AM136: 3
A137: =AM65 -> 28 | G137: 3
A138: 資金の流れ （資金の受け取り先が何を行っているかについて補足する） (単位：百万円) | G138: =A137 -> 28
AD142: 【随意契約(企画競争)等】
AD143: A.凸版印刷（株）ほか 54百万円
AD144: （国家公務員採用試験の実施に係る印刷製本費）
AD145: 【一般競争入札等】
AD146: B.日本情報産業（株） 59百万円
AD147: （国家公務員採用試験のインターネット受付等に係る電算処理業務料等）
AD148: 【随意契約(公募)】
J149: 人事院 262百万 | AD149: C.（株）ティーケーピー 2百万円
AD150: （国家公務員採用試験の実施に係る会場借料等）
AD151: 【一般競争入札】
AD152: D.ヤマトロジスティクス（株） 4百万円
AD153: （国家公務員採用試験の実施に係る通信運搬費）
AD154: 【諸謝金】
AD155: E.個人 39百万円
AD156: （試験問題作成に係る委員謝金等）
AD158: F.事務費 11百万円
AD159: （国家公務員採用試験の実施に係る備品費、消耗品費、会議費及び旅費）
N160: 【本院から予算配分】 | AD160: 【随意契約(少額)】
J161: 地方事務局（9） 93百万 | AD161: G.（株）福田印刷ほか 0.3百万円
AD162: （国家公務員採用試験の実施に係る印刷製本費）
AD163: 【随意契約(公募)】
AD164: H.東京大学ほか 60百万円
AD165: （国家公務員採用試験の実施に係る会場借料等）
AD166: 【随意契約(その他)等】
AD167: I.日本郵便（株）ほか 10百万円
AD168: （国家公務員採用試験の実施に係る通信運搬費）
AD170: J.事務費 23百万円
AD171: （国家公務員採用試験の実施に係る備品費、消耗品費、旅費及び非常勤職員手当等）
A177: 費目・使途 （「資金の流れ」においてブロックごとに最大の金額が支出されている者について記載する。費目と使途の双方で実情が分かるように記載） | G177: A.凸版印刷（株） | AC177: B.日本情報産業（株）
G178: 費 目 | L178: 使 途 | Y178: 金 額 (百万円） | AC178: 費 目 | AH178: 使 途 | AU178: 金 額 (百万円）
G179: 印刷製本費 | L179: 試験問題集の版下作成及び印刷代 | Y179: 49 | AC179: 雑役務費 | AH179: 平成28年度試験に係る電算処理業務料 | AU179: 46
AC180: 雑役務費 | AH180: 平成29年度試験に係る電算処理業務料 | AU180: 13
G189: 計 | Y189: =SUM(Y179:AB188) -> 49 | AC189: 計 | AU189: =SUM(AU179:AX188) -> 59
G190: C.（株）ティーケーピー | AC190: D.ヤマトロジスティックス（株）
G191: 費 目 | L191: 使 途 | Y191: 金 額 (百万円） | AC191: 費 目 | AH191: 使 途 | AU191: 金 額 (百万円）
G192: 借損 | L192: 総合職（大卒程度）教養区分第２次試験会場使用料等 | Y192: 2 | AC192: 通信運搬費 | AH192: 試験問題集の梱包・発送代等 | AU192: 4
G202: 計 | Y202: =SUM(Y192:AB201) -> 2 | AC202: 計 | AU202: =SUM(AU192:AX201) -> 4
G203: E. | AC203: F.
G204: 費 目 | L204: 使 途 | Y204: 金 額 (百万円） | AC204: 費 目 | AH204: 使 途 | AU204: 金 額 (百万円）
G215: 計 | AC215: 計 | AU215: =SUM(AU205:AX214) -> 0
G216: G.（株）福田印刷 | AC216: H.東京大学
G217: 費 目 | L217: 使 途 | Y217: 金 額 (百万円） | AC217: 費 目 | AH217: 使 途 | AU217: 金 額 (百万円）
G218: 印刷製本費 | L218: 平成29年度版官庁ガイド代 | Y218: 0.3 | AC218: 借損 | AH218: 国家公務員採用試験に係る会場使用料等 | AU218: 7
G228: 計 | Y228: =SUM(Y218:AB227) -> 0.3 | AC228: 計 | AU228: =SUM(AU218:AX227) -> 7
G229: Ｉ.日本郵便（株） | AC229: J.
G230: 費 目 | L230: 使 途 | Y230: 金 額 (百万円） | AC230: 費 目 | AH230: 使 途 | AU230: 金 額 (百万円）
G231: 通信運搬費 | L231: 国家公務員採用試験に係る運送料 | Y231: 5
G241: 計 | Y241: =SUM(Y231:AB240) -> 5 | AC241: 計 | AU241: =SUM(AU231:AX240) -> 0
A242: 費目・使途欄についてさらに記載が必要な場合はチェックの上【別紙２】に記載
B245: 支出先上位１０者リスト
B246: A.
C247: 支 出 先 | J247: 法 人 番 号 | P247: 業 務 概 要 | Y247: 支 出 額 （百万円） | AC247: 契約方式 | AH247: 入札者数 （応募者数） | AL247: 落札率 | AP247: 一者応札・一者応募又は 競争性のない随意契約となった 理由及び改善策 （支出額10億円以上）
A248: 1 | B248: 1 | C248: 凸版印刷（株） | J248: 7010501016231 | P248: 試験問題集の版下作成及び印刷代 | Y248: 48.5 | AC248: 随意契約 （企画競争） | AH248: 1
A249: 2 | B249: 1 | C249: （株）ハップ | J249: 1011701012208 | P249: 多肢選択式答案用紙印刷代 | Y249: 1.9 | AC249: 一般競争契約 （最低価格） | AH249: 4
A250: 3 | B250: 1 | C250: （株）エス・ワイ企画印刷 | J250: 4011101003135 | P250: 記述式答案用紙等印刷代 | Y250: 1.1 | AC250: 随意契約 （少額）
A251: 4 | B251: 1 | C251: （株）内浦 | J251: 8010601001198 | P251: 性格傾向スケール回答用紙等印刷代 | Y251: 0.7 | AC251: 随意契約 （少額）
A252: 5 | B252: 1 | C252: （社福）日本点字図書館 | J252: 9011105000974 | P252: 点字による試験問題集版下作成代等 | Y252: 0.49 | AC252: 随意契約 （企画競争） | AH252: 1
A253: 6 | B253: 1 | C253: アライ印刷（株） | J253: 7010001010296 | P253: 受験心得印刷代 | Y253: 0.36 | AC253: 随意契約 （少額）
A254: 7 | B254: 1 | C254: （株）白橋 | J254: 1010001046131 | P254: 一般職試験官・試験補佐官実施事項等印刷代 | Y254: 0.27 | AC254: 随意契約 （少額）
A255: 8 | B255: 1 | C255: 水三島紙工（株） | J255: 2120001016320 | P255: 受験票作成代 | Y255: 0.24 | AC255: 随意契約 （少額）
A256: 9 | B256: 1 | C256: 勝美印刷（株） | J256: 9010001001855 | P256: 総合職試験官・試験補佐官実施事項等印刷代 | Y256: 0.12 | AC256: 随意契約 （少額）
A257: 10 | B257: 1 | C257: 三鈴印刷（株） | J257: 8010001030054 | P257: 日程広報資料印刷代 | Y257: 0.11 | AC257: 随意契約 （少額）
B259: B.
C260: 支 出 先 | J260: 法 人 番 号 | P260: 業 務 概 要 | Y260: 支 出 額 （百万円） | AC260: 契約方式 | AH260: 入札者数 （応募者数） | AL260: 落札率 | AP260: 一者応札・一者応募又は 競争性のない随意契約となった 理由及び改善策 （支出額10億円以上）
A261: 1 | B261: 1 | C261: 日本情報産業（株） | J261: 1011001017799 | P261: 平成28年度試験に係る電算処理業務料 | Y261: 46.3 | AC261: 一般競争契約 （最低価格） | AH261: 1
A262: 2 | B262: 1 | C262: 日本情報産業（株） | J262: 1011001017799 | P262: 平成29年度試験に係る電算処理業務料 | Y262: 13.2 | AC262: 一般競争契約 （最低価格） | AH262: 1
A263: 3 | B263: 1 | C263: （株）川春 | J263: 7010001039889 | P263: 試験関係資料の処分 | Y263: 0.08 | AC263: 随意契約 （少額）
A264: 4 | B264: 1
A265: 5 | B265: 1
A266: 6 | B266: 1
A267: 7 | B267: 1
A268: 8 | B268: 1
A269: 9 | B269: 1
A270: 10 | B270: 1
B272: C.
C273: 支 出 先 | J273: 法 人 番 号 | P273: 業 務 概 要 | Y273: 支 出 額 （百万円） | AC273: 契約方式 | AH273: 入札者数 （応募者数） | AL273: 落札率 | AP273: 一者応札・一者応募又は 競争性のない随意契約となった 理由及び改善策 （支出額10億円以上）
A274: 1 | B274: 1 | C274: （株）ティーケーピー | J274: 7010001105955 | P274: 総合職（大卒程度）教養区分第2次試験会場使用料 | Y274: 2 | AC274: 随意契約 （公募）
A275: 2 | B275: 1 | Y275: 2
A276: 3 | B276: 1 | Y276: 2
... 92 more rows

Sheet 入力規則等 (hidden)
A1: 主要施策名 | B1: 該当の有無 | F1: 会計区分 | G1: 該当の有無 | K1: 主要経費名 | L1: 該当の有無 | P1: 実施方法 | Q1: 該当の有無 | U1: 事業番号 | W1: 開始年度 | Y1: 終了（予定）年度 | AA1: 行政事業レビュー推進チームの所見 | AC1: 所見を踏まえた改善点/概算要求における反映状況 | AE1: 契約方式 | AG1: 一体改革分野 | AI1: ブロック名
A2: 医療分野の研究開発関連 | C2: =IF(B2="","",A2) ->  | D2: =IF(C2="","",IF(D1<>"",CONCATENATE(D1,"、",C2),C2)) ->  | F2: 一般会計 | H2: =IF(G2="","",F2) ->  | I2: =IF(H2="","",IF(I1<>"",CONCATENATE(I1,"、",H2),H2)) ->  | K2: 社会保障 | M2: =IF(L2="","",K2) ->  | N2: =IF(M2="","",IF(N1<>"",CONCATENATE(N1,"、",M2),M2)) ->  | P2: 直接実施 | R2: =IF(Q2="","",P2) ->  | S2: =IF(R2="","",IF(S1<>"",CONCATENATE(S1,"、",R2),R2)) ->  | Y2: 平成２５年度 | AA2: 廃止 | AC2: 廃止 | AE2: 一般競争契約 （最低価格） | AG2: 社会保障 | AI2: A
A3: 宇宙開発利用 | C3: =IF(B3="","",A3) ->  | D3: =IF(C3="",D2,IF(D2<>"",CONCATENATE(D2,"、",C3),C3)) ->  | F3: 交付税及び譲与税配付金特別会計 | H3: =IF(G3="","",F3) ->  | I3: =IF(H3="",I2,IF(I2<>"",CONCATENATE(I2,"、",H3),H3)) ->  | K3: 文教及び科学振興 | M3: =IF(L3="","",K3) ->  | N3: =IF(M3="",N2,IF(N2<>"",CONCATENATE(N2,"、",M3),M3)) ->  | P3: 委託・請負 | R3: =IF(Q3="","",P3) ->  | S3: =IF(R3="",S2,IF(S2<>"",CONCATENATE(S2,"、",R3),R3)) ->  | U3: 新28 | W3: 昭和元年度以前 | Y3: 平成２６年度 | AA3: 事業全体の 抜本的な改善 | AC3: 縮減 | AE3: 一般競争契約 （総合評価） | AG3: 社会資本整備等 | AI3: =CHAR(CODE(AI2)+1) -> B
A4: 沖縄振興 | D4: =IF(C4="",D3,IF(D3<>"",CONCATENATE(D3,"、",C4),C4)) ->  | F4: 地震再保険特別会計 | I4: =IF(H4="",I3,IF(I3<>"",CONCATENATE(I3,"、",H4),H4)) ->  | K4: 恩給関係 | N4: =IF(M4="",N3,IF(N3<>"",CONCATENATE(N3,"、",M4),M4)) ->  | P4: 補助 | U4: 新29 | W4: 昭和２年度 | Y4: 平成２７年度 | AA4: 事業内容の 一部改善 | AC4: 執行等改善 | AE4: 指名競争契約 （最低価格） | AG4: 制度・地方行財政 | AI4: =CHAR(CODE(AI3)+1) -> C
A5: 海洋政策 | D5: =IF(C5="",D4,IF(D4<>"",CONCATENATE(D4,"、",C5),C5)) ->  | F5: 国債整理基金特別会計 | K5: 防衛関係 | P5: 負担 | W5: 昭和３年度 | Y5: 平成２８年度 | AA5: 終了予定 | AC5: 予定通り終了 | AE5: 指名競争契約 （総合評価） | AG5: 文教・科学技術 外交・安全保障・防衛等 | AI5: D
A6: 科学技術・イノベーション | D6: =IF(C6="",D5,IF(D5<>"",CONCATENATE(D5,"、",C6),C6)) ->  | F6: 外国為替資金特別会計 | K6: 公共事業 | P6: 交付 | W6: 昭和４年度 | Y6: 平成２９年度 | AA6: 現状通り | AC6: 現状通り | AE6: 随意契約 （企画競争） | AI6: E
A7: 観光立国 | F7: 財政投融資特別会計財政融資資金勘定 | K7: 経済協力 | P7: 貸付 | W7: 昭和５年度 | Y7: 平成３０年度 | AE7: 随意契約 （公募） | AI7: F
A8: 交通安全対策 | F8: 財政投融資特別会計投資勘定 | K8: 中小企業対策 | P8: その他 | W8: 昭和６年度 | Y8: 平成３１年度 | AE8: 随意契約 （少額） | AI8: G
A9: 高齢社会対策 | F9: 財政投融資特別会計特定国有財産整備勘定 | K9: エネルギー対策 | W9: 昭和７年度 | Y9: 平成３２年度 | AE9: 随意契約 （その他） | AI9: H
A10: 国土強靭化施策 | F10: エネルギー対策特別会計エネルギー需給勘定 | K10: 食糧安定供給関係 | P10: =S8 ->  | W10: 昭和８年度 | Y10: 平成３３年度 | AE10: 国庫債務 負担行為等 | AI10: I
A11: 子ども・若者育成支援 | F11: エネルギー対策特別会計電源開発促進勘定 | K11: その他の事項経費 | W11: 昭和９年度 | Y11: 平成３４年度 | AE11: （諸謝金） | AI11: J
A12: 自殺対策 | F12: エネルギー対策特別会計原子力損害賠償支援勘定 | W12: 昭和１０年度 | Y12: 平成３５年度 | AE12: その他 | AI12: K
A13: 障害者施策 | F13: 労働保険特別会計労災勘定 | K13: =N11 ->  | W13: 昭和１１年度 | Y13: 平成３６年度 | AI13: L
A14: 少子化社会対策 | F14: 労働保険特別会計雇用勘定 | W14: 昭和１２年度 | Y14: 平成３７年度 | AI14: M
A15: 食育推進 | F15: 労働保険特別会計徴収勘定 | W15: 昭和１３年度 | Y15: 平成３８年度 | AI15: N
A16: 男女共同参画 | F16: 年金特別会計基礎年金勘定 | W16: 昭和１４年度 | Y16: 平成３９年度 | AI16: O
A17: 地球温暖化対策 | F17: 年金特別会計国民年金勘定 | W17: 昭和１５年度 | Y17: 平成４０年度 | AI17: P
A18: 犯罪被害者等施策 | F18: 年金特別会計厚生年金勘定 | W18: 昭和１６年度 | Y18: 平成４１年度 | AI18: Q
A19: ＩＴ戦略 | F19: 年金特別会計健康勘定 | W19: 昭和１７年度 | Y19: 平成４２年度 | AI19: R
A20: クールジャパン | F20: 年金特別会計子ども・子育て支援勘定 | W20: 昭和１８年度 | Y20: 平成４３年度 | AI20: S
A21: 知的財産 | F21: 年金特別会計業務勘定 | W21: 昭和１９年度 | Y21: 平成４４年度 | AI21: T
A22: 地方創生 | F22: 食料安定供給特別会計農業経営安定勘定 | W22: 昭和２０年度 | Y22: 平成４５年度 | AI22: U
A23: ＯＤＡ | F23: 食料安定供給特別会計食糧管理勘定 | W23: 昭和２１年度 | Y23: 平成４６年度 | AI23: V
A24: 2020年東京オリパラ | F24: 食料安定供給特別会計農業共済再保険勘定 | W24: 昭和２２年度 | Y24: 平成４７年度 | AI24: =CHAR(CODE(AI23)+1) -> W
F25: 食料安定供給特別会計漁船再保険勘定 | W25: 昭和２３年度 | Y25: 平成４８年度 | AI25: X
A26: =D24 ->  | F26: 食料安定供給特別会計漁業共済保険勘定 | W26: 昭和２４年度 | Y26: 平成４９年度 | AI26: Y
F27: 食料安定供給特別会計業務勘定 | W27: 昭和２５年度 | Y27: 平成５０年度 | AI27: =CHAR(CODE(AI26)+1) -> Z
F28: 食料安定供給特別会計国営土地改良事業勘定 | W28: 昭和２６年度 | Y28: 平成５１年度 | AI28: a
F29: 国有林野事業債務管理特別会計 | W29: 昭和２７年度 | Y29: 平成５２年度 | AI29: b
F30: 貿易再保険特別会計 | W30: 昭和２８年度 | Y30: 平成５３年度 | AI30: c
F31: 特許特別会計 | W31: 昭和２９年度 | Y31: 平成５４年度 | AI31: d
F32: 自動車安全特別会計保障勘定 | W32: 昭和３０年度 | Y32: 平成５５年度 | AI32: e
F33: 自動車安全特別会計自動車検査登録勘定 | W33: 昭和３１年度 | Y33: 平成５５年度以降 | AI33: f
F34: 自動車安全特別会計自動車事故対策勘定 | W34: 昭和３２年度 | Y34: 終了予定なし | AI34: g
F35: 自動車安全特別会計空港整備勘定 | W35: 昭和３３年度 | AI35: h
F36: 東日本大震災復興特別会計 | W36: 昭和３４年度 | AI36: i
W37: 昭和３５年度 | AI37: j
W38: 昭和３６年度 | AI38: k
F39: =I37 ->  | W39: 昭和３７年度 | AI39: l
W40: 昭和３８年度 | AI40: m
W41: 昭和３９年度 | AI41: n
W42: 昭和４０年度 | AI42: o
W43: 昭和４１年度 | AI43: p
W44: 昭和４２年度 | AI44: q
W45: 昭和４３年度 | AI45: r
W46: 昭和４４年度 | AI46: s
W47: 昭和４５年度 | AI47: t
W48: 昭和４６年度 | AI48: u
W49: 昭和４７年度 | AI49: v
W50: 昭和４８年度
W51: 昭和４９年度
W52: 昭和５０年度
W53: 昭和５１年度
W54: 昭和５２年度
W55: 昭和５３年度
W56: 昭和５４年度
W57: 昭和５５年度
W58: 昭和５６年度
W59: 昭和５７年度
W60: 昭和５８年度
W61: 昭和５９年度
W62: 昭和６０年度
W63: 昭和６１年度
W64: 昭和６２年度
W65: 昭和６３年度
W66: 平成元年度
W67: 平成２年度
W68: 平成３年度
W69: 平成４年度
W70: 平成５年度
W71: 平成６年度
W72: 平成７年度
W73: 平成８年度
W74: 平成９年度
W75: 平成１０年度
W76: 平成１１年度
W77: 平成１２年度
W78: 平成１３年度
W79: 平成１４年度
W80: 平成１５年度
W81: 平成１６年度
W82: 平成１７年度
W83: 平成１８年度
W84: 平成１９年度
W85: 平成２０年度
W86: 平成２１年度
W87: 平成２２年度
W88: 平成２３年度
W89: 平成２４年度
W90: 平成２５年度
W91: 平成２６年度
W92: 平成２７年度
W93: 平成２８年度
W94: 平成２９年度
W95: 平成３０年度
W122: 新
